bitfinex/quotes_ETHUSD_20251128
["timestamp","ask_amount","ask_price","bid_price","bid_amount"]
[1764372903085,0.002,3038.1,3038.0,11.58377219]
[1764372905101,0.002,3038.1,3038.0,12.05797219]
[1764372909003,0.002,3038.1,3038.0,11.58377219]
[1764372911998,0.9829,3038.1,3038.0,5.70602117]
[1764372912196,0.9829,3038.1,3038.0,9.03993076]
[1764372912791,0.9829,3038.1,3038.0,3.63146947]
[1764372912996,0.9829,3038.1,3038.0,4.35706358]
[1764372913164,0.9829,3038.1,3038.0,8.10733665]
[1764372913363,1.29079208,3038.1,3038.0,8.31433665]
[1764372914195,0.9829,3038.1,3038.0,8.31433665]
[1764372930604,0.9829,3038.1,3038.0,3.63146947]
[1764372936402,0.9829,3038.1,3038.0,4.79211522]
[1764372938499,0.9829,3038.1,3038.0,4.82503161]
[1764372941127,1.29102987,3038.1,3038.0,4.82503161]
[1764372943135,0.80932987,3038.1,3038.0,4.82503161]
[1764372943608,0.80932987,3038.1,3038.0,9.47536211]
[1764372943810,1.26682987,3038.1,3038.0,9.47536211]
[1764372944318,1.26682987,3038.1,3038.0,9.94116211]
[1764372944319,0.31012987,3038.1,3038.0,9.94116211]
[1764372945732,0.31012987,3038.1,3038.0,9.47536211]
[1764372947635,0.31012987,3038.1,3038.0,9.94116211]
[1764372949413,0.31010352,3038.1,3038.0,9.94116211]
[1764372949842,0.31010352,3038.1,3038.0,9.47536211]
[1764372950634,0.31010352,3038.1,3038.0,9.94116211]
[1764372950808,0.002,3038.1,3038.0,9.94116211]
[1764372951011,0.002,3038.1,3038.0,9.47536211]
[1764372951012,0.9504,3038.1,3038.0,9.47536211]
[1764372951414,0.4929,3038.1,3038.0,9.47536211]
[1764372955544,0.4929,3038.1,3038.0,4.58511522]
[1764372955723,0.4929,3038.1,3038.0,4.82503161]
[1764372956046,0.9504,3038.1,3038.0,4.82503161]
[1764372956849,0.9504,3038.1,3038.0,4.79211522]
[1764372957048,1.25835579,3038.1,3038.0,4.79211522]
[1764372957849,1.25835579,3038.1,3038.0,3.63146947]
[1764372959752,1.25835579,3038.1,3038.0,3.42446947]
[1764372959980,1.25835579,3038.1,3038.0,3.63146947]
[1764372960557,0.80085579,3038.1,3038.0,3.66438586]
[1764372960725,0.4929,3038.1,3038.0,3.66438586]
[1764372961250,0.4929,3038.1,3038.0,4.82832325]
[1764372961458,0.002,3038.1,3038.0,4.82832325]
[1764372961653,0.002,3038.1,3038.0,5.29412325]
[1764372964680,0.002,3038.1,3038.0,7.2295012]
[1764372964864,0.002,3038.1,3038.0,7.19658481]
[1764372965167,0.002,3038.8,3038.6,0.405504]
[1764372965463,0.002,3038.8,3038.7,6.81242484]
[1764372965629,0.002,3038.8,3038.7,7.49695842]
[1764372965957,0.002,3038.8,3038.7,8.09925913]
[1764372966366,0.002,3038.8,3038.7,11.39014009]
[1764372967164,0.199,3039.6,3038.8,0.405504]
[1764372967335,0.199,3039.6,3038.9,1.19658384]
[1764372967532,0.199,3039.6,3038.9,3.39028006]
[1764372967861,0.199,3039.6,3038.9,4.05978006]
[1764372968063,0.0868,3039.9,3039.2,0.73318384]
[1764372968064,0.5812,3039.9,3039.2,0.73318384]
[1764372968266,0.199,3040.2,3039.3,0.72559411]
[1764372968560,0.199,3040.2,3040.1,4.68324689]
[1764372968763,0.199,3040.2,3040.1,4.89024689]
[1764372968934,1.1592,3040.2,3040.1,4.89024689]
[1764372969135,1.1592,3040.2,3040.1,5.38464689]
[1764372970167,1.46570545,3040.2,3040.1,0.4944]
[1764372973271,1.1592,3040.2,3040.1,3.78376548]
[1764372974178,1.1612,3040.2,3040.1,3.78376548]
[1764372976264,1.1612,3040.2,3040.1,4.98011398]
[1764372976484,0.002,3040.2,3040.1,5.44011398]
[1764372977751,0.002,3040.2,3040.1,6.81680809]
[1764372978380,0.002,3040.2,3040.1,6.16570809]
[1764372978551,0.002,3040.2,3040.1,6.19860174]
[1764372979364,0.002,3040.2,3040.1,6.84970174]
[1764372979559,0.002,3040.2,3040.1,6.81680809]
[1764372979770,0.002,3040.2,3040.1,6.16570809]
[1764372979976,0.002,3040.2,3040.1,6.19860174]
[1764372981397,0.002,3040.2,3040.1,6.16570809]
[1764372982098,0.002,3040.2,3040.1,6.19860174]
[1764372982306,0.002,3040.2,3040.1,6.16570809]
[1764372985200,0.002,3040.2,3040.1,6.19860174]
[1764372987384,0.4881,3040.2,3040.1,5.73860174]
[1764372987578,0.9533,3040.2,3040.1,5.70570809]
[1764372987973,0.9533,3040.2,3040.1,5.91270809]
[1764372990905,0.9533,3040.2,3040.1,0.4944]
[1764372991122,0.9533,3040.2,3039.7,3.28976143]
[1764372991272,0.0865,3039.6,3039.3,6.5804626]
[1764372991476,0.0865,3039.6,3039.4,0.93259411]
[1764372991677,0.0865,3039.6,3039.5,4.79981472]
[1764372991678,0.5517,3039.6,3039.5,4.79981472]
[1764372991896,0.1834,3039.7,3039.5,4.79981472]
[1764372992205,0.1834,3039.7,3039.6,0.72559411]
[1764372992611,0.6695,3039.7,3039.6,1.74686171]
[1764372992920,0.4861,3039.7,3039.6,1.74686171]
[1764372993089,0.4861,3039.7,3039.6,6.76217511]
[1764372993405,0.1834,3039.9,3039.6,10.47918261]
[1764372993607,0.4861,3039.7,3039.6,6.72927605]
[1764372993774,0.4861,3039.7,3039.6,5.74090751]
[1764372993978,0.9513,3039.7,3039.6,6.25990657]
[1764372995406,0.9513,3039.7,3039.6,5.77380657]
[1764372995910,0.4861,3039.7,3039.6,5.77380657]
[1764372998007,0.002,3040.2,3039.6,17.98567302]
[1764372998211,0.30732598,3040.1,3039.8,0.4603]
[1764372998408,0.4968,3040.2,3039.9,0.23989581]
[1764372998606,0.80213506,3040.1,3039.9,0.23989581]
[1764372998781,0.4507,3040.0,3039.9,0.23989581]
[1764372999277,0.4948,3040.1,3039.9,0.23989581]
[1764372999614,0.002,3040.2,3040.0,6.57894736]
[1764372999813,0.4968,3040.2,3040.1,0.03289365]
[1764373000032,0.80412823,3040.2,3040.1,0.03289365]
[1764373000313,1.25482823,3040.2,3040.1,0.03289365]
[1764373001720,1.25482823,3040.2,3040.1,3.32225913]
[1764373002022,1.25482823,3040.2,3040.1,4.02526835]
[1764373003116,1.25482823,3040.2,3040.1,0.70300922]
[1764373003318,1.25482823,3040.2,3040.1,3.28936548]
[1764373005324,1.25482823,3040.2,3040.0,3.2894698]
[1764373005509,0.80212823,3040.1,3040.0,3.2894698]
[1764373005704,1.25282823,3040.1,3040.0,3.2894698]
[1764373010532,1.25482823,3040.1,3040.0,3.2894698]
[1764373010996,1.25482823,3040.1,3040.0,0.207]
[1764373012140,1.25482823,3040.1,3040.0,3.49647368]
[1764373012561,1.25482823,3040.1,3040.0,3.52936841]
[1764373014821,0.76002823,3040.1,3040.0,3.52936841]
[1764373015228,0.76002823,3040.1,3040.0,4.2112625]
[1764373016427,1.25482823,3040.1,3040.0,4.2112625]
[1764373016599,1.25482823,3040.1,3040.0,3.52936841]
[1764373018605,0.76002823,3040.1,3040.0,3.52936841]
[1764373018810,0.30932823,3040.1,3040.0,3.52936841]
[1764373019504,0.76002823,3040.1,3040.0,3.52936841]
[1764373020628,1.25482823,3040.1,3040.0,3.49647368]
[1764373022016,1.25482823,3040.1,3040.0,3.52936841]
[1764373027842,1.25495229,3040.1,3040.0,3.52936841]
[1764373028312,0.76015229,3040.1,3040.0,3.32936841]
[1764373028639,0.30945229,3040.1,3040.0,3.78296841]
[1764373029020,0.30945229,3040.1,3040.0,4.24086841]
[1764373029222,0.30945229,3040.1,3040.0,3.78296841]
[1764373029909,0.30945229,3040.1,3040.0,3.32936841]
[1764373030111,0.76575229,3040.1,3040.0,3.32936841]
[1764373031311,0.30945229,3040.1,3040.0,3.32936841]
[1764373032643,0.76575229,3040.1,3040.0,3.32936841]
[1764373032940,1.24515229,3040.1,3040.0,3.29647368]
[1764373034542,1.19515229,3040.1,3040.0,3.29647368]
[1764373035241,1.19515229,3040.1,3040.0,0.007]
[1764373036242,1.19515229,3040.1,3040.0,3.29647368]
[1764373036548,1.19515229,3040.1,3040.0,0.007]
[1764373037115,1.19515229,3040.1,3040.0,3.29647368]
[1764373042855,1.19515229,3040.1,3039.5,0.72559411]
[1764373043056,0.6372,3039.6,3039.4,3.29012305]
[1764373043357,0.1861,3039.6,3039.5,0.207]
[1764373043521,0.9371,3039.5,3039.3,3.29119513]
[1764373043725,0.1134,3039.4,3039.3,3.94934451]
[1764373043918,0.5994,3039.4,3039.3,4.15634451]
[1764373046535,0.90636506,3039.4,3039.3,4.15634451]
[1764373047030,0.90636506,3039.4,3039.3,3.49819513]
[1764373049735,0.42036506,3039.4,3039.3,3.49819513]
[1764373049941,0.42036506,3039.4,3039.3,3.53109744]
[1764373050835,0.42036506,3039.4,3039.3,3.49819513]
[1764373052664,0.30696506,3039.4,3039.3,3.49819513]
[1764373054168,0.30696506,3039.4,3039.3,3.99049513]
[1764373056259,0.30696506,3039.4,3039.3,4.88514602]
[1764373059771,0.30696506,3039.4,3039.3,4.39284602]
[1764373061170,0.30696506,3039.4,3039.3,4.42574833]
[1764373062844,0.30696506,3039.4,3039.3,4.39284602]
[1764373062845,0.78276506,3039.4,3039.3,4.39284602]
[1764373070397,1.23486506,3039.4,3039.3,3.49819513]
[1764373070889,0.78276506,3039.4,3039.3,3.49819513]
[1764373074700,0.30696506,3039.4,3039.3,4.44429513]
[1764373074862,0.30696506,3039.4,3039.3,9.157818]
[1764373075064,0.30696506,3039.4,3039.3,5.43268647]
[1764373075387,0.30696506,3039.4,3039.3,6.3559273]
[1764373076291,0.30696506,3039.4,3039.3,6.1489273]
[1764373076460,0.30696506,3039.4,3039.3,6.3559273]
[1764373079394,0.30696506,3039.4,3039.3,5.87302499]
[1764373080596,0.78276506,3039.4,3039.3,5.16992499]
[1764373080776,1.23486506,3039.4,3039.3,4.48658647]
[1764373080977,1.23486506,3039.4,3039.3,0.208]
[1764373081178,1.23486506,3039.4,3039.3,3.4982313]
[1764373083099,1.23486506,3039.4,3039.3,0.001]
[1764373089280,1.56554568,3039.4,3039.3,0.001]
[1764373089489,1.23486506,3039.4,3039.3,0.001]
[1764373091885,0.78276506,3039.4,3039.3,0.001]
[1764373092408,0.30696506,3039.4,3039.3,0.4926]
[1764373092712,0.30696506,3039.4,3039.3,6.36165169]
[1764373093883,0.30696506,3039.4,3039.3,1.68103113]
[1764373094202,0.30696506,3039.4,3039.3,2.16023113]
[1764373094708,0.30696506,3039.4,3039.3,5.45046243]
[1764373094914,0.002,3040.1,3039.6,0.32767984]
[1764373095217,0.002,3040.1,3040.0,0.4916]
[1764373095414,0.3093096,3040.1,3040.0,0.4916]
[1764373095585,0.3093096,3040.1,3040.0,0.9543]
[1764373095984,0.3093096,3040.1,3040.0,1.2636096]
[1764373096211,0.3093096,3040.1,3040.0,1.85803262]
[1764373097394,0.3093096,3040.1,3040.0,5.1475063]
[1764373097610,0.3093096,3040.1,3040.0,4.6848063]
[1764373102891,0.7647096,3040.1,3040.0,4.1932063]
[1764373103091,0.7647096,3040.1,3040.0,3.59878328]
[1764373104820,1.2403096,3040.1,3040.0,3.59878328]
[1764373105724,0.7647096,3040.1,3040.0,3.59878328]
[1764373106422,1.2403096,3040.1,3040.0,3.59878328]
[1764373106628,1.2403096,3040.1,3040.0,0.3093096]
[1764373106804,1.2403096,3040.1,3040.0,3.59878328]
[1764373107610,0.7647096,3040.1,3040.0,3.59878328]
[1764373108429,1.2403096,3040.1,3040.0,3.59878328]
[1764373110447,1.2403096,3040.1,3040.0,0.3093096]
[1764373110743,1.2403096,3040.1,3040.0,0.5163096]
[1764373112025,1.2403096,3040.1,3040.0,0.3093096]
[1764373112645,1.2403096,3040.1,3039.3,0.001]
[1764373112802,0.7829096,3040.0,3039.4,0.207]
[1764373113007,1.04367366,3039.9,3039.4,0.207]
[1764373113239,0.6426,3039.5,3039.4,0.207]
[1764373113541,0.9499096,3039.5,3039.4,0.207]
[1764373113847,1.4255096,3039.5,3039.4,0.207]
[1764373114942,1.4255096,3039.5,3039.4,3.49712305]
[1764373115131,0.7627096,3039.5,3039.4,3.49712305]
[1764373115338,0.3073096,3039.5,3039.4,3.49712305]
[1764373116214,0.7703096,3039.5,3039.4,0.207]
[1764373116419,0.7703096,3039.5,3039.4,3.49712305]
[1764373117759,1.2659096,3039.5,3039.4,3.49712305]
[1764373118146,0.3073096,3039.5,3039.4,3.96372305]
[1764373121554,0.3073096,3039.5,3039.4,10.39374184]
[1764373121761,0.3073096,3039.5,3039.4,10.36084061]
[1764373126442,0.3073096,3039.5,3039.4,4.73822003]
[1764373127168,0.7703096,3039.5,3039.4,3.49712305]
[1764373127538,0.3073096,3039.5,3039.4,3.49712305]
[1764373127737,0.3073096,3039.5,3039.4,3.96372305]
[1764373128865,1.2659096,3039.5,3039.4,3.49712305]
[1764373130076,0.7703096,3039.5,3039.4,3.49712305]
[1764373130278,0.7703096,3039.5,3039.3,3.29122613]
[1764373130279,1.2659096,3039.5,3039.3,0.001]
[1764373130578,0.8845096,3039.4,3039.3,0.001]
[1764373132244,4.92108278,3039.4,3039.3,0.001]
[1764373132570,4.17463265,3039.4,3039.3,0.001]
[1764373142067,4.50531327,3039.4,3039.3,0.001]
[1764373142267,4.17463265,3039.4,3039.3,0.001]
[1764373142574,0.3889096,3039.4,3039.3,0.001]
[1764373143584,0.8845096,3039.4,3039.3,0.001]
[1764373144585,4.17463265,3039.4,3039.3,0.001]
[1764373153086,0.8845096,3039.4,3039.3,0.001]
[1764373153581,4.17463265,3039.4,3039.3,0.001]
[1764373155295,0.3073096,3039.4,3039.3,0.4593]
[1764373155865,4.09633265,3039.4,3039.3,0.001]
[1764373156192,4.55913265,3039.4,3039.3,0.001]
[1764373156388,5.6747173,3039.4,3039.3,0.001]
[1764373157167,4.88981327,3039.4,3039.3,0.001]
[1764373161296,5.09681327,3039.4,3039.3,0.001]
[1764373165905,9.85155723,3039.4,3039.3,0.001]
[1764373166104,0.83618462,3039.1,3039.0,0.001]
[1764373166274,17.02192591,3039.1,3039.0,0.001]
[1764373166474,19.27729101,3039.1,3039.0,0.001]
[1764373166668,18.4593328,3039.1,3039.0,0.001]
[1764373167105,20.5134748,3039.1,3039.0,0.001]
[1764373167512,26.8494748,3039.1,3039.0,0.001]
[1764373168208,33.47302562,3039.1,3039.0,0.001]
[1764373168506,18.64119162,3039.1,3039.0,0.001]
[1764373168707,33.47302562,3039.1,3039.0,0.001]
[1764373170475,33.91395068,3039.1,3039.0,0.001]
[1764373173099,19.08211668,3039.1,3039.0,0.001]
[1764373173299,33.91395068,3039.1,3039.0,0.001]
[1764373174118,22.068038,3039.0,3038.7,0.001]
[1764373174319,22.068038,3039.0,3038.2,0.001]
[1764373174320,0.904404,3038.6,3038.2,0.001]
[1764373174619,21.16453331,3038.3,3038.2,0.001]
[1764373174781,23.70533307,3038.3,3038.2,0.001]
[1764373174982,30.50413307,3038.3,3038.2,0.001]
[1764373175220,30.63605853,3038.3,3038.2,0.001]
[1764373176107,33.92737275,3038.3,3038.2,0.001]
[1764373178417,16.54640454,3038.3,3038.2,0.001]
[1764373178821,16.32515665,3038.3,3038.2,0.001]
[1764373179205,13.48796765,3038.3,3038.2,0.001]
[1764373180200,10.26530444,3038.3,3038.2,0.954]
[1764373180503,9.93462382,3038.3,3038.2,0.4642]
[1764373187925,9.93462382,3038.3,3038.2,0.954]
[1764373190136,9.93462382,3038.3,3038.2,0.4642]
[1764373191432,9.93462382,3038.3,3038.2,0.954]
[1764373191595,9.93462382,3038.3,3038.2,0.4642]
[1764373193031,9.93462382,3038.3,3038.2,0.001]
[1764373193330,10.41362382,3038.3,3038.2,0.001]
[1764373194722,12.74046792,3038.3,3038.2,0.001]
[1764373195818,12.64046792,3038.3,3038.2,0.001]
[1764373203540,11.3719873,3038.3,3038.2,0.954]
[1764373203837,9.93462382,3038.3,3038.2,0.954]
[1764373204140,9.93462382,3038.3,3038.2,0.4642]
[1764373206235,6.6433096,3038.3,3038.2,0.4642]
[1764373206436,6.6433096,3038.3,3038.2,0.9447]
[1764373208043,9.93462382,3038.3,3038.2,0.9447]
[1764373209211,9.93462382,3038.3,3038.2,0.4642]
[1764373209613,11.76470729,3038.3,3038.2,0.001]
[1764373209823,11.60888791,3038.3,3038.2,0.4976]
[1764373210818,9.93462382,3038.3,3038.2,0.4976]
[1764373212123,9.93462382,3038.3,3038.2,0.001]
[1764373212525,10.42112382,3038.3,3038.2,0.001]
[1764373212731,10.75180444,3038.3,3038.2,0.001]
[1764373213037,11.23060444,3038.3,3038.2,0.001]
[1764373213227,12.70378633,3038.3,3038.2,0.001]
[1764373213821,12.22498633,3038.3,3038.2,0.001]
[1764373214225,11.40780571,3038.3,3038.2,0.4976]
[1764373216054,11.40780571,3038.3,3038.2,0.001]
[1764373218159,11.88110571,3038.3,3038.2,0.001]
[1764373218345,12.34850571,3038.3,3038.2,0.001]
[1764373218651,11.88110571,3038.3,3038.2,0.001]
[1764373219330,12.34850571,3038.3,3038.2,0.001]
[1764373220258,12.67918633,3038.3,3038.2,0.001]
[1764373223322,12.77918633,3038.3,3038.2,0.001]
[1764373223557,19.28126233,3038.3,3038.2,0.001]
[1764373224956,19.90685644,3038.3,3038.2,0.001]
[1764373226562,19.01730644,3038.3,3038.2,0.001]
[1764373228865,18.89613044,3038.3,3038.2,0.001]
[1764373229049,17.15715244,3038.3,3038.2,0.001]
[1764373229366,16.81367244,3038.3,3038.2,0.001]
[1764373229566,17.38107244,3038.3,3038.2,0.001]
[1764373230636,17.28107244,3038.3,3038.2,0.001]
[1764373233532,13.40478044,3038.3,3038.2,0.001]
[1764373233739,20.14444544,3038.3,3038.2,0.001]
[1764373233949,20.24444544,3038.3,3038.2,0.001]
[1764373235294,19.47814544,3038.3,3038.2,0.001]
[1764373236986,19.61004393,3038.3,3038.2,0.001]
[1764373237777,19.51004393,3038.3,3038.2,0.001]
[1764373238156,17.09373193,3038.3,3038.2,0.001]
[1764373238386,13.06927893,3038.3,3038.2,0.001]
[1764373238577,12.59597893,3038.3,3038.2,0.4805]
[1764373239391,9.93462382,3038.3,3038.2,0.9512]
[1764373240257,10.26530444,3038.3,3038.2,0.9512]
[1764373241596,9.93462382,3038.3,3038.2,0.9512]
[1764373241806,6.6433096,3038.3,3038.2,0.9512]
[1764373242296,6.6433096,3038.3,3038.2,1.39459152]
[1764373242697,6.6433096,3038.3,3038.2,4.68601407]
[1764373244796,0.3073096,3038.3,3038.2,9.37131193]
[1764373245019,0.002,3038.5,3038.2,4.68601407]
[1764373245165,0.002,3038.5,3038.4,0.4795]
[1764373245602,0.002,3038.5,3038.4,0.9502]
[1764373246173,0.002,3038.5,3038.4,1.43960121]
[1764373246599,0.002,3038.5,3038.4,0.9502]
[1764373247622,0.002,3038.5,3038.4,4.24140589]
[1764373247781,0.002,3038.5,3038.4,0.9502]
[1764373256640,0.002,3038.5,3038.4,4.24140589]
[1764373257145,0.3083772,3038.5,3038.4,4.24140589]
[1764373257328,0.3083772,3038.5,3038.4,5.05992598]
[1764373258634,0.3083772,3038.5,3038.4,1.76872009]
[1764373259226,0.3083772,3038.5,3038.4,0.9502]
[1764373261626,0.63905782,3038.5,3038.4,0.4795]
[1764373262129,0.3083772,3038.5,3038.4,0.4795]
[1764373262623,0.3083772,3038.5,3038.4,0.9502]
[1764373263825,0.3083772,3038.5,3038.4,4.24140589]
[1764373264031,0.3083772,3038.5,3038.4,5.01548292]
[1764373265827,0.3083772,3038.5,3038.4,1.72427703]
[1764373266500,0.3083772,3038.5,3038.4,1.25357703]
[1764373266700,0.63905782,3038.5,3038.4,1.25357703]
[1764373267519,0.3083772,3038.5,3038.4,1.25357703]
[1764373268098,0.3083772,3038.5,3038.4,1.71587703]
[1764373268300,0.3083772,3038.5,3038.4,1.25357703]
[1764373268812,0.3083772,3038.5,3038.4,5.00708292]
[1764373269299,0.3083772,3038.5,3038.4,1.71587703]
[1764373269914,0.002,3038.5,3038.4,1.71587703]
[1764373270122,0.30946371,3038.5,3038.4,4.54478292]
[1764373270629,0.30946371,3038.5,3038.4,1.25357703]
[1764373270830,0.30946371,3038.5,3038.4,4.54478292]
[1764373271022,0.30946371,3038.5,3038.4,5.00708292]
[1764373277020,0.30946371,3038.5,3038.4,5.03999497]
[1764373278813,0.78776371,3038.5,3038.4,0.77407703]
[1764373279034,0.78776371,3038.5,3038.3,0.001]
[1764373279035,1.24776371,3038.5,3038.3,0.208]
[1764373279229,0.30746371,3038.4,3038.3,0.001]
[1764373279740,0.30746371,3038.4,3038.3,0.4712]
[1764373279945,0.30746371,3038.4,3038.3,1.26391661]
[1764373281147,0.30746371,3038.4,3038.3,0.4712]
[1764373282746,0.002,3038.5,3038.3,0.4712]
[1764373283049,0.30772481,3038.4,3038.3,0.4712]
[1764373284117,0.30772481,3038.4,3038.3,4.23751422]
[1764373284914,0.30772481,3038.4,3038.2,0.24091422]
[1764373284915,29.47584504,3038.4,3038.2,0.001]
[1764373285244,29.47584504,3038.4,3037.9,0.001]
[1764373285245,16.39361273,3038.0,3037.9,0.001]
[1764373285442,7.36973793,3038.0,3037.9,0.001]
[1764373285639,22.66157193,3038.0,3037.9,0.001]
[1764373285836,22.79349609,3038.0,3037.9,0.001]
[1764373286046,23.25897585,3038.0,3037.9,0.001]
[1764373286246,0.83618462,3037.7,3036.2,3.29359013]
[1764373286550,25.94127568,3037.7,3036.2,3.29359013]
[1764373286850,26.40127568,3037.7,3036.2,3.29359013]
[1764373287047,29.69323999,3037.7,3036.2,3.29359013]
[1764373287253,32.9449024,3037.7,3036.2,3.29359013]
[1764373287847,33.67049651,3037.7,3036.1,3.97666787]
[1764373288017,30.96909651,3037.7,3036.1,3.97666787]
[1764373288219,30.91278351,3037.7,3036.1,3.97666787]
[1764373288630,30.91278351,3037.7,3036.1,0.683]
[1764373289159,33.67049651,3037.7,3036.1,3.97667931]
[1764373289352,34.35349651,3037.7,3036.1,3.97667931]
[1764373289725,31.66605051,3037.7,3036.2,0.475]
[1764373290120,32.71723851,3037.7,3036.2,0.475]
[1764373290323,28.74788351,3037.7,3036.2,0.475]
[1764373290637,24.11147051,3037.7,3036.1,3.50167931]
[1764373290826,24.11147051,3037.7,3036.3,0.475]
[1764373291017,19.42617265,3037.7,3036.3,0.475]
[1764373291218,26.71579165,3037.7,3036.3,0.475]
[1764373291655,23.86728165,3037.7,3036.3,3.76848136]
[1764373291949,23.86728165,3037.7,3036.3,3.29348136]
[1764373292156,34.17074965,3037.7,3036.4,0.475]
[1764373292753,31.24771465,3037.7,3036.4,0.475]
[1764373293118,32.53531565,3037.7,3036.4,0.475]
[1764373293326,29.90954465,3037.7,3036.4,0.475]
[1764373294257,30.57606865,3037.7,3036.4,0.475]
[1764373294456,30.00275165,3037.7,3036.4,0.475]
[1764373294653,30.00275165,3037.7,3036.3,3.29347508]
[1764373294950,34.68804951,3037.7,3036.5,0.475]
[1764373295457,40.68949651,3037.7,3036.2,3.29349902]
[1764373295758,38.38669751,3037.7,3036.3,0.4587]
[1764373296058,35.96409951,3037.7,3036.3,0.4587]
[1764373296356,38.90197051,3037.7,3036.3,0.4587]
[1764373297358,40.68949651,3037.7,3036.3,0.4587]
[1764373298238,25.85766251,3037.7,3036.3,0.4587]
[1764373298450,40.68949651,3037.7,3036.3,0.4587]
[1764373300661,36.00977682,3037.7,3036.4,0.4587]
[1764373301361,14.831834,3037.4,3036.0,0.6426]
[1764373301542,0.33068062,3036.4,3036.3,0.4587]
[1764373301927,0.33068062,3036.4,3036.3,0.9363]
[1764373302331,3.93177916,3036.4,3036.3,0.9363]
[1764373302545,3.60109854,3036.4,3036.3,0.9363]
[1764373302745,3.93177916,3036.4,3036.3,0.9363]
[1764373305164,3.93177916,3036.4,3036.3,0.9373]
[1764373305663,3.60109854,3036.4,3036.3,0.9373]
[1764373305866,3.93177916,3036.4,3036.3,0.9373]
[1764373309366,0.30772481,3036.4,3036.3,0.9373]
[1764373309570,0.30772481,3036.4,3036.3,1.3603937]
[1764373310670,0.30772481,3036.4,3036.3,4.65387589]
[1764373313838,0.30772481,3036.4,3036.3,4.19517589]
[1764373314041,0.30772481,3036.4,3036.3,4.65387589]
[1764373315445,0.30772481,3036.4,3036.3,4.68681071]
[1764373316993,0.30772481,3036.4,3036.3,4.65387589]
[1764373319191,0.30772481,3036.4,3036.3,4.68681071]
[1764373319769,6.335,3037.3,3036.3,4.68681071]
[1764373319770,6.335,3037.3,3036.3,11.24084027]
[1764373320084,6.335,3037.3,3037.2,0.6674]
[1764373320475,6.335,3037.3,3037.2,1.1261]
[1764373321281,6.66568062,3037.3,3037.2,0.6674]
[1764373322390,6.335,3037.3,3037.2,0.6674]
[1764373322769,6.335,3037.3,3037.2,1.1261]
[1764373327863,6.335,3037.3,3037.2,0.44188074]
[1764373327864,10.12419785,3037.3,3037.2,0.44188074]
[1764373328184,0.33068062,3037.2,3036.8,3.95720399]
[1764373328384,0.33068062,3037.2,3036.9,0.4563]
[1764373328591,9.62741275,3037.3,3036.8,0.208]
[1764373328796,10.41949337,3037.3,3036.8,3.95723778]
[1764373328996,10.41949337,3037.3,3037.2,0.4781]
[1764373328997,6.335,3037.3,3037.2,0.4781]
[1764373329304,6.66568062,3037.3,3037.2,0.4781]
[1764373329475,7.16248062,3037.3,3036.8,3.50093778]
[1764373329678,7.16248062,3037.3,3036.9,0.80639378]
[1764373330404,7.16248062,3037.3,3037.0,0.4563]
[1764373330594,10.45488619,3037.3,3037.0,0.4563]
[1764373330897,7.16248062,3037.3,3036.9,0.80639378]
[1764373331293,10.45488987,3037.3,3036.9,0.80639378]
[1764373331599,10.45488987,3037.3,3037.0,0.43073316]
[1764373331797,0.30644059,3037.2,3037.0,0.43073316]
[1764373331969,0.30644059,3037.1,3037.0,0.43073316]
[1764373332479,0.30644059,3037.1,3037.0,1.36513316]
[1764373333282,0.30644059,3037.1,3037.0,0.90883316]
[1764373333483,0.30644059,3037.1,3037.0,0.4781]
[1764373341303,0.30644059,3037.1,3037.0,3.77082308]
[1764373341609,0.30644059,3037.1,3037.0,4.22712308]
[1764373345107,0.30708832,3037.1,3037.0,4.22712308]
[1764373345605,0.30708832,3037.1,3037.0,4.22662308]
[1764373345902,0.30708832,3037.1,3037.0,1.70665325]
[1764373346308,0.30708832,3037.1,3037.0,4.99937633]
[1764373356819,0.30708832,3037.1,3037.0,5.06610356]
[1764373357488,0.30708832,3037.1,3037.0,5.37319188]
[1764373358519,0.30708832,3037.1,3037.0,5.34026465]
[1764373358826,0.30708832,3037.1,3037.0,5.37319188]
[1764373359902,0.30908832,3037.1,3037.0,5.37319188]
[1764373362614,0.30908832,3037.1,3037.0,10.05983703]
[1764373362799,0.30908832,3037.1,3037.0,10.0269098]
[1764373366320,0.002,3037.1,3037.0,10.0269098]
[1764373369130,1.25900052,3037.1,3036.6,3.29309969]
[1764373369297,0.30680052,3037.0,3036.7,0.52253048]
[1764373369499,0.30680052,3036.9,3036.7,0.6976]
[1764373369699,0.30680052,3036.8,3036.7,0.6976]
[1764373369929,0.30680052,3036.8,3036.7,1.89465017]
[1764373370130,0.30680052,3036.8,3036.7,2.36715017]
[1764373370525,0.002,3037.1,3036.7,2.40008065]
[1764373370729,0.002,3037.1,3037.0,0.4725]
[1764373370901,0.30877002,3037.1,3036.7,1.89465017]
[1764373371101,0.30677002,3037.0,3036.9,3.2928315]
[1764373375030,0.30677002,3037.0,3036.9,3.7653315]
[1764373376338,0.30677002,3037.0,3036.9,3.79825981]
[1764373378436,0.30877002,3037.0,3036.9,3.79825981]
[1764373378820,0.30877002,3037.0,3036.9,4.28785981]
[1764373379021,0.30877002,3037.0,3036.9,5.67160423]
[1764373380042,0.30877002,3037.0,3036.9,5.98037425]
[1764373396466,0.30877002,3037.0,3036.9,5.49077425]
[1764373397755,0.30877002,3037.0,3036.9,5.97167425]
[1764373399370,0.30877002,3037.0,3036.9,6.69726836]
[1764373399537,0.002,3037.3,3037.0,2.08089811]
[1764373399735,0.002,3037.3,3037.2,11.15918841]
[1764373400170,0.002,3037.3,3037.2,11.7719569]
[1764373400375,0.002,3037.3,3037.2,12.09963674]
[1764373400541,0.002,3037.3,3037.2,11.7719569]
[1764373400941,0.002,3037.5,3037.4,0.405504]
[1764373401162,0.002,3037.5,3037.4,7.86499208]
[1764373401474,0.002,3037.5,3037.4,11.60525864]
[1764373401645,0.002,3037.5,3037.4,11.73711539]
[1764373402458,0.002,3037.5,3037.4,16.42376054]
[1764373404273,0.4792,3038.6,3037.4,19.71604999]
[1764373404445,0.4792,3038.6,3037.5,3.82454581]
[1764373404646,0.4792,3038.6,3037.6,0.405504]
[1764373404864,0.4792,3038.6,3037.8,0.73318384]
[1764373405064,0.4792,3038.6,3038.1,5.36124515]
[1764373405693,0.4792,3038.6,3038.1,9.12637604]